bitfinex/quotes_BTCUSD_20250522
["timestamp","ask_amount","ask_price","bid_price","bid_amount"]
[1747941031653,0.17938648,111500.0,111490.0,3.14710657]
[1747941033146,0.17938648,111500.0,111490.0,2.52346657]
[1747941033356,0.18834071,111500.0,111490.0,3.35719485]
[1747941033553,0.18834071,111500.0,111490.0,3.36616426]
[1747941033804,0.18834071,111500.0,111490.0,3.17780657]
[1747941034013,0.18834071,111500.0,111490.0,2.47852572]
[1747941034197,0.18834071,111500.0,111490.0,3.01258016]
[1747941035212,0.21904071,111500.0,111490.0,3.01258016]
[1747941035436,0.24774071,111500.0,111490.0,2.38898016]
[1747941035652,0.24774071,111500.0,111490.0,3.01258016]
[1747941035855,0.24774071,111500.0,111490.0,2.74386016]
[1747941036060,0.24774071,111500.0,111490.0,3.01258016]
[1747941037517,0.24774071,111500.0,111490.0,3.01268016]
[1747941038114,0.24774071,111500.0,111490.0,1.7599]
[1747941038328,0.33728627,111500.0,111490.0,0.74394]
[1747941038523,0.33728627,111500.0,111490.0,1.01266]
[1747941038726,0.33728627,111500.0,111490.0,0.74394]
[1747941038982,0.33728627,111500.0,111490.0,1.01266]
[1747941039968,0.33728627,111500.0,111490.0,1.01166]
[1747941040358,0.25686195,111470.0,111460.0,0.46707332]
[1747941040618,0.34640751,111470.0,111460.0,1.2289]
[1747941040868,0.24860822,111460.0,111450.0,0.04107783]
[1747941041070,0.24860822,111460.0,111450.0,1.18775783]
[1747941041249,0.24860822,111460.0,111450.0,1.47693799]
[1747941041489,0.24860822,111460.0,111450.0,2.08565799]
[1747941041914,0.24660822,111460.0,111450.0,0.66471783]
[1747941042126,0.24660822,111460.0,111450.0,0.66487035]
[1747941042341,0.24660822,111460.0,111450.0,1.00487035]
[1747941042701,0.24660822,111460.0,111450.0,0.96379252]
[1747941043112,0.24660822,111460.0,111450.0,0.96779252]
[1747941043355,0.24760822,111460.0,111450.0,0.96779252]
[1747941043508,0.24660822,111460.0,111450.0,0.96379252]
[1747941043711,0.24660822,111460.0,111450.0,0.96389252]
[1747941043913,0.24660822,111460.0,111450.0,0.96689252]
[1747941044530,0.24660822,111460.0,111450.0,0.96489252]
[1747941044735,0.24760822,111460.0,111450.0,0.96489252]
[1747941044946,0.24760822,111460.0,111450.0,0.96493252]
[1747941045357,0.33715378,111460.0,111450.0,0.96497252]
[1747941045806,0.33715378,111460.0,111450.0,0.96501252]
[1747941046642,0.33715378,111460.0,111450.0,0.34125252]
[1747941046847,0.33715378,111460.0,111450.0,0.96501252]
[1747941048205,0.33715378,111460.0,111450.0,1.35209252]
[1747941051859,0.21750822,111460.0,111450.0,4.95665668]
[1747941052069,0.18740822,111460.0,111450.0,4.95665668]
[1747941053108,0.18740822,111460.0,111450.0,4.66747652]
[1747941053316,0.18740822,111460.0,111450.0,4.95665668]
[1747941055143,0.21530822,111460.0,111450.0,4.95665668]
[1747941056114,0.18740822,111460.0,111450.0,4.95665668]
[1747941056509,0.18740822,111460.0,111450.0,4.95669668]
[1747941056676,0.21640822,111460.0,111450.0,2.77849268]
[1747941057691,0.21640822,111460.0,111450.0,2.25489268]
[1747941057903,0.24690822,111460.0,111450.0,2.25489268]
[1747941059311,0.24690822,111460.0,111450.0,2.23899268]
[1747941059733,0.24690822,111460.0,111450.0,1.80659268]
[1747941059949,0.33645378,111460.0,111450.0,0.72833252]
[1747941060165,0.33645378,111460.0,111450.0,1.00913252]
[1747941060389,0.33645378,111460.0,111450.0,1.34913252]
[1747941060823,0.33645378,111460.0,111450.0,1.63831268]
[1747941062983,0.18740822,111460.0,111450.0,1.63831268]
[1747941063205,0.18740822,111460.0,111450.0,4.95361668]
[1747941063885,0.187097,111460.0,111450.0,4.95361668]
[1747941064511,0.187097,111460.0,111450.0,4.33281668]
[1747941064708,0.187097,111460.0,111450.0,4.95361668]
[1747941066188,0.187097,111460.0,111450.0,4.98181668]
[1747941066998,0.187097,111460.0,111450.0,5.00911668]
[1747941068060,0.187097,111460.0,111450.0,4.98181668]
[1747941075328,0.187097,111460.0,111450.0,4.95361668]
[1747941078024,0.187097,111460.0,111450.0,4.68477668]
[1747941078236,0.243097,111460.0,111450.0,4.95361668]
[1747941078444,0.214297,111460.0,111450.0,4.95361668]
[1747941079685,0.214297,111460.0,111450.0,4.61240416]
[1747941080701,0.243397,111460.0,111450.0,4.61240416]
[1747941082385,0.243397,111460.0,111450.0,2.04380016]
[1747941082602,0.243397,111460.0,111450.0,3.00460016]
[1747941084165,0.243397,111460.0,111450.0,2.38380016]
[1747941084384,0.243397,111460.0,111450.0,3.00460016]
[1747941086450,0.214297,111460.0,111450.0,3.00460016]
[1747941086650,0.187097,111460.0,111450.0,3.00460016]
[1747941086856,0.187097,111460.0,111450.0,3.03310016]
[1747941087875,0.187097,111460.0,111450.0,3.00460016]
[1747941089213,0.19606858,111460.0,111450.0,3.34037093]
[1747941089360,0.19606858,111460.0,111450.0,3.15194572]
[1747941090556,0.19606858,111460.0,111450.0,3.12264572]
[1747941090752,0.19606858,111460.0,111450.0,3.15114836]
[1747941091585,0.187097,111460.0,111450.0,3.36937365]
[1747941091816,0.17812534,111460.0,111450.0,3.36937365]
[1747941092392,0.17812534,111460.0,111450.0,3.18094836]
[1747941092587,0.17812534,111460.0,111450.0,3.15114836]
[1747941093018,0.17812534,111460.0,111450.0,2.88230836]
[1747941093219,0.17812534,111460.0,111450.0,3.15114836]
[1747941094602,0.17812534,111460.0,111450.0,2.8619682]
[1747941094825,0.17812534,111460.0,111450.0,3.15114836]
[1747941097381,0.17812534,111460.0,111450.0,3.19222619]
[1747941097760,0.17812534,111460.0,111450.0,3.19232619]
[1747941097971,0.17812534,111460.0,111450.0,3.37177885]
[1747941098166,0.17812534,111460.0,111450.0,3.38075148]
[1747941098529,0.17812534,111460.0,111450.0,2.76892403]
[1747941098740,0.187097,111460.0,111450.0,3.43817727]
[1747941099315,0.187097,111460.0,111450.0,3.42920488]
[1747941099524,0.187097,111460.0,111450.0,3.40230488]
[1747941100167,0.187097,111460.0,111450.0,3.39333233]
[1747941100374,0.187097,111460.0,111450.0,3.40230488]
[1747941100953,0.187097,111460.0,111450.0,3.81920488]
[1747941101369,0.17812534,111460.0,111450.0,3.81920488]
[1747941101765,0.187097,111460.0,111450.0,3.81920488]
[1747941102017,0.20735146,111460.0,111450.0,3.85707735]
[1747941102459,0.01894308,111460.0,111450.0,3.87502164]
[1747941102683,0.20735146,111460.0,111450.0,3.87502164]
[1747941102897,0.20735146,111460.0,111450.0,3.85707735]
[1747941103114,0.20735146,111460.0,111450.0,3.86604974]
[1747941103681,0.20735146,111460.0,111450.0,3.85707735]
[1747941103910,0.19838004,111460.0,111450.0,3.82817735]
[1747941104131,0.18940838,111460.0,111450.0,3.50152472]
[1747941104314,0.20723656,111460.0,111450.0,3.57872619]
[1747941104998,0.18043656,111460.0,111450.0,3.57872619]
[1747941105218,0.18043656,111460.0,111450.0,3.59326704]
[1747941105446,0.18043656,111460.0,111450.0,3.00146704]
[1747941105677,0.20631428,111480.0,111470.0,0.52839141]
[1747941105911,0.23658828,111490.0,111480.0,0.35454085]
[1747941105912,0.18835769,111490.0,111480.0,0.35454085]
[1747941106157,0.18835769,111490.0,111480.0,4.36635073]
[1747941106618,0.18835769,111490.0,111480.0,4.39455073]
[1747941108004,0.18835769,111490.0,111480.0,4.42305337]
[1747941108205,0.18835769,111490.0,111480.0,4.39485337]
[1747941108876,0.18835769,111490.0,111480.0,4.39495337]
[1747941109096,0.19135769,111490.0,111480.0,4.36645073]
[1747941109331,0.18835769,111490.0,111480.0,4.36645073]
[1747941110677,0.19732686,111490.0,111480.0,4.58172515]
[1747941115751,0.19732686,111490.0,111480.0,4.99862515]
[1747941116635,0.19732686,111490.0,111480.0,4.97172515]
[1747941116953,0.19732686,111490.0,111480.0,4.97172531]
[1747941117088,0.19732686,111490.0,111480.0,5.35872531]
[1747941117531,0.19732686,111490.0,111480.0,5.17035073]
[1747941120237,0.19732686,111490.0,111480.0,5.35872523]
[1747941120435,0.19732686,111490.0,111480.0,5.38563474]
[1747941120653,0.19732686,111490.0,111480.0,5.37666509]
[1747941121313,0.17937219,111500.0,111480.0,5.36769496]
[1747941121551,0.17935611,111510.0,111500.0,0.52834055]
[1747941121753,0.17935611,111510.0,111500.0,4.03402972]
[1747941121966,0.17935611,111510.0,111500.0,4.06222972]
[1747941122174,0.17935611,111510.0,111500.0,4.03402972]
[1747941122847,0.17986392,111510.0,111500.0,4.03402972]
[1747941123050,0.18086392,111510.0,111500.0,4.06222972]
[1747941123400,0.18086392,111510.0,111500.0,4.03402972]
[1747941124857,0.18186392,111510.0,111500.0,4.03402972]
[1747941125118,0.18186392,111510.0,111500.0,3.89691136]
[1747941125329,0.18186392,111510.0,111500.0,4.22326004]
[1747941125569,0.18186392,111510.0,111500.0,4.2322284]
[1747941125737,0.18186392,111510.0,111500.0,4.22326004]
[1747941125939,0.18186392,111510.0,111500.0,4.02595073]
[1747941126203,0.18186392,111510.0,111500.0,3.99775073]
[1747941126350,0.18186392,111510.0,111500.0,3.70857057]
[1747941126564,0.18186392,111510.0,111500.0,3.88794276]
[1747941126971,0.18186392,111510.0,111500.0,3.70857057]
[1747941127175,0.18186392,111510.0,111500.0,4.04857057]
[1747941127453,0.18186392,111510.0,111500.0,4.22794276]
[1747941127640,0.18186392,111510.0,111500.0,4.64484276]
[1747941128006,0.18186392,111510.0,111500.0,4.46547057]
[1747941129623,0.18186392,111510.0,111500.0,4.64484276]
[1747941130269,0.18186392,111510.0,111500.0,4.65381128]
[1747941130476,0.18186392,111510.0,111500.0,4.70024808]
[1747941130698,0.18186392,111510.0,111500.0,4.99839644]
[1747941130923,0.17937727,111520.0,111510.0,0.34]
[1747941131155,0.17941557,111540.0,111530.0,0.17932394]
[1747941131387,0.01792796,111550.0,111540.0,0.51930787]
[1747941131593,0.02689222,111550.0,111540.0,4.2223029]
[1747941131803,0.20618465,111550.0,111540.0,4.52044821]
[1747941132007,0.17934756,111560.0,111540.0,4.54395381]
[1747941132212,0.17949997,111560.0,111550.0,4.95755166]
[1747941132424,0.17949997,111560.0,111550.0,4.95531073]
[1747941133478,0.23609997,111560.0,111550.0,4.65154972]
[1747941133879,0.20839997,111560.0,111550.0,4.65154972]
[1747941134101,0.20939997,111560.0,111550.0,4.65154972]
[1747941134332,0.01792508,111570.0,111560.0,0.51927572]
[1747941134727,0.20614803,111570.0,111560.0,4.5114493]
[1747941134952,0.20614803,111570.0,111560.0,4.53495361]
[1747941135691,0.18822255,111570.0,111560.0,3.75939041]
[1747941135911,0.18822255,111570.0,111560.0,4.33775073]
[1747941136120,0.24482255,111570.0,111560.0,4.65142972]
[1747941136331,0.24582255,111570.0,111560.0,4.65142972]
[1747941136534,0.24582255,111570.0,111560.0,3.74484956]
[1747941136756,0.24582255,111570.0,111560.0,4.56188416]
[1747941137196,0.24582255,111570.0,111560.0,4.85106432]
[1747941139170,0.24582255,111570.0,111560.0,4.56188416]
[1747941139428,0.24582255,111570.0,111560.0,4.85106432]
[1747941140273,0.24582255,111570.0,111560.0,4.56184416]
[1747941141121,0.24582255,111570.0,111560.0,3.94448416]
[1747941141325,0.24582255,111570.0,111560.0,4.56180416]
[1747941143072,0.24582255,111570.0,111560.0,4.85098432]
[1747941144120,0.0665629,111570.0,111560.0,5.03922382]
[1747941144332,0.23479019,111590.0,111580.0,0.34]
[1747941144532,0.20679019,111590.0,111580.0,5.03806972]
[1747941145347,0.20679019,111590.0,111580.0,5.21731331]
[1747941145529,0.17929019,111590.0,111580.0,5.2199454]
[1747941145769,0.17929019,111590.0,111580.0,5.03173972]
[1747941146261,0.17929019,111590.0,111580.0,4.69806972]
[1747941146487,0.001,111590.0,111580.0,4.87731331]
[1747941146713,0.20609173,111600.0,111590.0,0.20272966]
[1747941146928,0.21520468,111600.0,111590.0,4.19490075]
[1747941147149,0.2150523,111600.0,111590.0,4.19490075]
[1747941147362,0.06970698,111600.0,111590.0,4.20386188]
[1747941147573,0.09658797,111600.0,111590.0,4.0067121]
[1747941147778,0.08762788,111600.0,111590.0,4.0067121]
[1747941148004,0.07866755,111600.0,111590.0,4.02130654]
[1747941148219,0.07866755,111600.0,111590.0,4.36130654]
[1747941148646,0.01791897,111610.0,111600.0,0.1971322]
[1747941148848,0.20607415,111610.0,111600.0,4.78858191]
[1747941149118,0.19711479,111610.0,111600.0,4.78858191]
[1747941149304,0.01791897,111610.0,111600.0,4.82104294]
[1747941149504,0.19711438,111610.0,111600.0,5.22898293]
[1747941149809,0.03583761,111610.0,111600.0,5.26714294]
[1747941150009,0.22399279,111610.0,111600.0,5.26714294]
[1747941150238,0.22399279,111610.0,111600.0,5.2671431]
[1747941150377,0.20607431,111610.0,111600.0,5.24922268]
[1747941150590,0.20607431,111610.0,111600.0,5.26018309]
[1747941150796,0.18815518,111610.0,111600.0,5.03485073]
[1747941151025,0.18815518,111610.0,111600.0,5.22302268]
[1747941152781,0.17919541,111610.0,111600.0,5.55406219]
[1747941153012,0.17919541,111610.0,111600.0,5.37485073]
[1747941154683,0.23499541,111610.0,111600.0,4.075204]
[1747941154907,0.23499541,111610.0,111600.0,4.56936416]
[1747941155530,0.23499541,111610.0,111600.0,3.94748416]
[1747941155754,0.23499541,111610.0,111600.0,4.56936416]
[1747941157020,0.23499541,111610.0,111600.0,4.85854432]
[1747941157564,0.23499541,111610.0,111600.0,4.56936416]
[1747941158611,0.23499541,111610.0,111600.0,4.85854432]
[1747941158807,0.23499541,111610.0,111600.0,4.56936416]
[1747941159010,0.23499541,111610.0,111600.0,4.85854432]
[1747941159245,0.17919541,111610.0,111600.0,4.94808988]
[1747941160563,0.17919541,111610.0,111600.0,4.94580588]
[1747941161195,0.18813799,111620.0,111610.0,0.54269595]
[1747941161393,0.17917935,111620.0,111610.0,4.04628657]
[1747941161584,0.17917935,111620.0,111610.0,4.05524634]
[1747941161787,0.17917935,111620.0,111610.0,4.23444175]
[1747941162364,0.17917935,111620.0,111610.0,4.24440144]
[1747941162571,0.17917935,111620.0,111610.0,4.28056096]
[1747941162773,0.17917935,111620.0,111610.0,4.24440144]
[1747941163421,0.17917935,111620.0,111610.0,4.24450144]
[1747941163624,0.00895856,111620.0,111610.0,3.95532128]
[1747941163822,0.02687568,111620.0,111610.0,3.97323992]
[1747941164037,0.02687568,111620.0,111610.0,4.00043992]
[1747941164038,0.0268756,111620.0,111610.0,4.00043992]
[1747941164464,0.01791688,111620.0,111610.0,4.00043992]
[1747941164687,0.01791576,111630.0,111620.0,0.04141661]
[1747941164885,0.21499482,111630.0,111620.0,4.57820261]
[1747941165088,0.21499482,111630.0,111620.0,4.57596328]
[1747941165320,0.20603722,111630.0,111620.0,4.56700464]
[1747941165516,0.19707938,111630.0,111620.0,4.56700464]
[1747941165721,0.00895752,111630.0,111620.0,5.00182168]
[1747941165918,0.02687328,111630.0,111620.0,5.00182168]
[1747941166151,0.02987328,111630.0,111620.0,5.00182168]
[1747941166561,0.03883136,111630.0,111620.0,5.00182168]
[1747941166768,0.02987296,111630.0,111620.0,5.00182168]
[1747941166977,0.03683096,111630.0,111620.0,5.00182168]
[1747941167180,0.04578904,111630.0,111620.0,5.00182168]
[1747941167387,0.04578904,111630.0,111620.0,5.00382168]
[1747941167709,0.21599482,111630.0,111620.0,4.99486328]
[1747941167921,0.21499482,111630.0,111620.0,4.99486328]
[1747941168139,0.21499482,111630.0,111620.0,5.00392184]
[1747941168339,0.22395298,111630.0,111620.0,5.01588032]
[1747941168733,0.2149953,111630.0,111620.0,5.01588032]
[1747941169943,0.01791576,111630.0,111620.0,5.01588032]
[1747941170137,0.02687392,111630.0,111620.0,4.99796328]
[1747941170387,0.19707906,111630.0,111620.0,4.80086641]
[1747941170538,0.19707906,111630.0,111620.0,4.80982537]
[1747941170743,0.19707906,111630.0,111620.0,4.80086641]
[1747941171168,0.19707906,111630.0,111620.0,4.98900456]
[1747941171349,0.25247906,111630.0,111620.0,4.98004576]
[1747941171542,0.2435213,111630.0,111620.0,4.80086641]
[1747941171815,0.2435213,111630.0,111620.0,4.98900456]
[1747941172026,0.19707906,111630.0,111620.0,5.01588032]
[1747941172230,0.02687384,111630.0,111620.0,4.98900456]
[1747941172605,0.24357613,111640.0,111630.0,0.34]
[1747941172807,0.21668397,111640.0,111630.0,4.12904556]
[1747941173369,0.24408397,111640.0,111630.0,4.30820886]
[1747941173560,0.25304125,111640.0,111630.0,4.30820886]
[1747941173763,0.26199861,111640.0,111630.0,4.30820886]
[1747941174019,0.08277952,111640.0,111630.0,4.30920886]
[1747941174368,0.26192677,111640.0,111630.0,4.09726624]
[1747941175003,0.08277952,111640.0,111630.0,3.96920886]
[1747941175173,0.07382168,111640.0,111630.0,3.96920886]
[1747941175373,0.08277888,111640.0,111630.0,3.96920886]
[1747941175724,0.03746464,111640.0,111630.0,3.98374971]
[1747941175929,0.27088325,111640.0,111630.0,3.98374971]
[1747941176543,0.091736,111640.0,111630.0,4.32374971]
[1747941176698,0.091736,111640.0,111630.0,4.32574971]
[1747941176909,0.27088325,111640.0,111630.0,4.32574971]
[1747941177694,0.091736,111640.0,111630.0,4.32574971]
[1747941178149,0.09173592,111640.0,111630.0,4.34366595]
[1747941178349,0.04642152,111640.0,111630.0,4.35262379]
[1747941178552,0.0184212,111640.0,111630.0,4.35262379]
[1747941178786,0.00050784,111640.0,111630.0,4.37053915]
[1747941178995,0.00027887,111640.0,111630.0,4.78743915]
[1747941179222,0.00027887,111640.0,111630.0,4.84183915]
[1747941180455,1.4647144,111650.0,111640.0,0.58935922]
[1747941180671,1.46486669,111650.0,111640.0,5.05826478]
[1747941181143,1.46486669,111650.0,111640.0,5.08511678]
[1747941181355,1.46486669,111650.0,111640.0,5.41867259]
[1747941181356,1.20089027,111650.0,111640.0,5.41867259]
[1747941181565,1.20089027,111650.0,111640.0,5.74593259]
[1747941181786,1.20089027,111650.0,111640.0,6.10421259]
[1747941182415,1.20089027,111650.0,111640.0,6.11421259]
[1747941182628,1.19779246,111650.0,111640.0,6.41421259]
[1747941182836,0.89346409,111650.0,111640.0,6.43978431]
[1747941183041,0.86806723,111650.0,111640.0,6.43978431]
[1747941183294,0.001,111680.0,111670.0,0.87050387]
[1747941183512,0.20589022,111710.0,111700.0,0.53359187]
[1747941183727,0.20589022,111710.0,111700.0,3.16546641]
[1747941183728,0.31809276,111710.0,111700.0,3.16546641]
[1747941183931,0.25489093,111710.0,111700.0,4.02516293]
[1747941184136,0.25489093,111710.0,111700.0,4.38326293]
[1747941184590,0.25489093,111710.0,111700.0,4.3029065]
[1747941184758,0.25489093,111710.0,111700.0,4.58217027]
[1747941184917,0.25589093,111710.0,111700.0,4.58217027]
[1747941185132,0.25589093,111710.0,111700.0,4.59112258]
[1747941185533,0.06790355,111710.0,111700.0,4.58757898]
[1747941185732,0.08580599,111710.0,111700.0,4.58757898]
[1747941185941,0.09475757,111710.0,111700.0,4.58757898]
[1747941186144,0.09475757,111710.0,111700.0,4.58767898]
[1747941186348,0.10370923,111710.0,111700.0,4.60017481]
[1747941186542,0.25889053,111710.0,111700.0,4.09550641]
[1747941186791,0.25889053,111710.0,111700.0,4.36378641]
[1747941187005,0.25889053,111710.0,111700.0,4.09550641]
[1747941187190,0.25889053,111710.0,111700.0,4.36378641]
[1747941188152,0.25889053,111710.0,111700.0,5.09990641]
[1747941188601,0.25889053,111710.0,111700.0,5.08432956]
[1747941188996,0.25889053,111710.0,111700.0,4.46624956]
[1747941189196,0.25889053,111710.0,111700.0,2.8605]
[1747941189427,0.25889053,111710.0,111700.0,2.20272]
[1747941189799,0.63692776,111710.0,111700.0,2.20272]
[1747941190018,0.63692776,111710.0,111700.0,1.52448]
[1747941190196,0.34843609,111710.0,111700.0,2.14252]
[1747941190654,0.25889053,111710.0,111700.0,2.42563051]
[1747941190819,0.25889053,111710.0,111700.0,2.76563051]
[1747941191045,0.25889053,111710.0,111700.0,2.33773051]
[1747941191223,0.63692776,111710.0,111700.0,2.14243051]
[1747941191422,0.63692776,111710.0,111700.0,2.48243051]
[1747941191636,0.63692776,111710.0,111700.0,1.86439051]
[1747941191835,0.63692776,111710.0,111700.0,2.48243051]
[1747941194001,0.63692776,111710.0,111700.0,1.86439051]
[1747941194206,0.63692776,111710.0,111700.0,2.45333051]
[1747941195070,0.63692776,111710.0,111700.0,1.75375051]
[1747941195272,0.63692776,111710.0,111700.0,2.02203051]
[1747941199095,0.63392776,111710.0,111700.0,2.02203051]
[1747941199332,0.63792776,111710.0,111700.0,2.02203051]
[1747941199701,0.63692776,111710.0,111700.0,2.02203051]
[1747941200105,0.64192776,111710.0,111700.0,2.02203051]
[1747941203522,0.64179234,111710.0,111700.0,2.02203051]
[1747941204097,0.64179234,111710.0,111700.0,1.40399051]
[1747941204486,0.64179234,111710.0,111700.0,2.02207051]
[1747941206604,0.66629319,111710.0,111700.0,2.02207051]
[1747941206881,0.66629319,111710.0,111630.0,0.07070348]
[1747941206882,0.18810445,111640.0,111630.0,0.07070348]
[1747941207111,0.18810445,111640.0,111630.0,3.12780264]
[1747941207354,0.18810445,111640.0,111630.0,3.53070064]
[1747941207588,0.18810445,111640.0,111630.0,3.162198]
[1747941207788,0.18810445,111640.0,111630.0,3.502198]
[1747941207994,0.18810445,111640.0,111630.0,3.162198]
[1747941208266,0.18810445,111640.0,111630.0,3.252038]
[1747941208515,0.18810445,111640.0,111630.0,3.86347029]
[1747941208966,0.18810445,111640.0,111630.0,3.52347029]
[1747941209197,0.18810445,111640.0,111630.0,3.86347029]
[1747941209727,0.18810445,111640.0,111630.0,3.86157029]
[1747941210135,0.18810445,111640.0,111630.0,3.86257029]
[1747941215283,0.18810445,111640.0,111630.0,3.86177029]
[1747941225522,0.18810445,111640.0,111630.0,3.59341029]
[1747941225701,0.18810445,111640.0,111630.0,3.86181029]
[1747941227382,0.18810445,111640.0,111630.0,3.86185029]
[1747941229468,0.21880445,111640.0,111630.0,3.86185029]
[1747941229688,0.21880445,111640.0,111630.0,3.59345029]
[1747941229906,0.25110445,111640.0,111630.0,2.82033029]
[1747941230087,0.25110445,111640.0,111630.0,1.80217029]
[1747941231969,0.34065001,111640.0,111630.0,1.80217029]
[1747941234747,0.34065001,111640.0,111630.0,1.18477029]
[1747941234904,0.34065001,111640.0,111630.0,1.80217029]
[1747941238433,0.34065001,111640.0,111630.0,1.18477029]
[1747941238665,0.34065001,111640.0,111630.0,1.80217029]
[1747941241997,0.34065001,111640.0,111630.0,1.53377029]
[1747941242221,0.34065001,111640.0,111630.0,1.80217029]
[1747941246481,0.34065001,111640.0,111630.0,1.39932]
[1747941246482,0.27765001,111640.0,111630.0,1.39932]
[1747941246708,0.18810445,111640.0,111630.0,1.461]
[1747941247145,0.18810445,111640.0,111630.0,1.56508641]
[1747941248423,0.18810445,111640.0,111630.0,1.90508641]
[1747941252707,0.18810445,111640.0,111630.0,1.90504641]
[1747941254359,0.18810445,111640.0,111630.0,1.18392]
[1747941254586,0.18810445,111640.0,111630.0,1.80096]
[1747941255264,0.18810445,111640.0,111630.0,1.18392]
[1747941255460,0.18810445,111640.0,111630.0,1.80096]
[1747941255663,0.18810445,111640.0,111630.0,1.73896]
[1747941256602,0.18810445,111640.0,111630.0,1.90484641]
[1747941256815,0.19706157,111640.0,111630.0,1.90484641]
[1747941257254,0.19706157,111640.0,111630.0,2.08400971]
[1747941257379,0.18810445,111640.0,111630.0,2.09296787]
[1747941257847,0.18810445,111640.0,111630.0,1.91380457]
[1747941258057,0.18810445,111640.0,111630.0,1.90484641]
[1747941258287,0.18810445,111640.0,111630.0,2.08400971]
[1747941258627,0.17914725,111640.0,111630.0,2.08400971]
[1747941258803,0.17914725,111640.0,111630.0,2.09296787]
[1747941260086,0.17914725,111640.0,111630.0,1.91380457]
[1747941260502,0.17914725,111640.0,111630.0,2.09296787]
[1747941261277,0.17914725,111640.0,111630.0,1.90484641]
[1747941262218,0.17914725,111640.0,111630.0,1.63644641]
[1747941262437,0.17914725,111640.0,111630.0,1.90484641]
[1747941262686,0.17914725,111640.0,111630.0,1.63644641]
[1747941262919,0.17914725,111640.0,111630.0,1.90484641]
[1747941274145,0.00895672,111640.0,111630.0,2.10192563]
[1747941274379,0.02686878,111650.0,111640.0,0.62445946]
[1747941274587,0.04478149,111650.0,111640.0,3.16702502]
[1747941274776,0.2239127,111650.0,111640.0,3.15806814]
[1747941274986,0.2239127,111650.0,111640.0,3.1670251]
[1747941275405,0.2239127,111650.0,111640.0,3.19552774]
[1747941275613,0.2239127,111650.0,111640.0,3.18657078]
[1747941275810,0.21495663,111650.0,111640.0,3.19552782]
[1747941276037,0.21495663,111650.0,111640.0,3.20448478]
[1747941276268,0.21595663,111650.0,111640.0,3.20448478]
[1747941277205,0.19804425,111650.0,111640.0,3.19552782]
[1747941277717,0.19804425,111650.0,111640.0,3.19552798]
[1747941277923,0.19804425,111650.0,111640.0,3.20448502]
[1747941280133,0.19804425,111650.0,111640.0,3.56276502]
[1747941280901,0.19804425,111650.0,111640.0,3.54485086]
[1747941281554,0.18908777,111650.0,111640.0,3.63220905]
[1747941281762,0.18908777,111650.0,111640.0,3.90056905]
[1747941282520,0.18908777,111650.0,111640.0,3.87206641]
[1747941284347,0.18908777,111650.0,111640.0,3.25538641]
[1747941284554,0.18908777,111650.0,111640.0,3.93656641]
[1747941284974,0.18908777,111650.0,111640.0,3.31988641]
[1747941285194,0.18908777,111650.0,111640.0,4.11571366]
[1747941285478,0.17914332,111660.0,111640.0,4.14258518]
[1747941285699,0.17914332,111660.0,111650.0,2.79302]
[1747941286115,0.17914332,111660.0,111650.0,3.15128]
[1747941286751,0.17914332,111660.0,111650.0,3.76796]
[1747941286974,0.18014332,111660.0,111650.0,3.76796]
[1747941287145,0.17914332,111660.0,111650.0,3.76796]
[1747941287391,0.18014332,111660.0,111650.0,3.76796]
[1747941288918,0.18014332,111660.0,111650.0,3.95604777]
[1747941289180,0.18014332,111660.0,111650.0,4.02054777]
[1747941289392,0.18014332,111660.0,111650.0,3.83246]
[1747941290476,0.18014332,111660.0,111650.0,4.21886]
[1747941290979,0.18014332,111660.0,111650.0,4.15436]
[1747941292439,0.17571332,111660.0,111650.0,4.15436]
[1747941294517,0.17571332,111660.0,111650.0,4.33349121]
[1747941294779,0.17571332,111660.0,111650.0,4.40664777]
[1747941295193,0.17571332,111660.0,111650.0,4.42118862]
[1747941295402,0.17571332,111660.0,111650.0,4.51073418]
[1747941296290,0.17571332,111660.0,111650.0,4.32264641]
[1747941299929,0.17571332,111660.0,111650.0,4.25844641]
[1747941300761,0.17571332,111660.0,111650.0,4.05307141]
[1747941300961,0.17571332,111660.0,111650.0,3.78471141]
[1747941301173,0.20841332,111660.0,111650.0,3.948985]
[1747941301802,0.17571332,111660.0,111650.0,3.948985]
[1747941302276,0.17571332,111660.0,111650.0,4.05307141]
[1747941302627,0.17571332,111660.0,111650.0,4.23220262]
[1747941302837,0.17571332,111660.0,111650.0,4.05307141]
[1747941303035,0.17571332,111660.0,111650.0,4.24071651]
[1747941303323,0.001,111660.0,111650.0,4.30191651]
[1747941303539,0.26866979,111690.0,111670.0,0.24601709]
[1747941303540,0.17906781,111690.0,111670.0,0.24601709]
[1747941303723,0.21489801,111680.0,111670.0,0.35334041]
[1747941303862,0.18802116,111690.0,111680.0,0.01454085]
[1747941304060,0.01790598,111690.0,111680.0,2.41506963]
[1747941304264,0.19697336,111690.0,111680.0,2.77100141]
[1747941304519,0.20592663,111690.0,111680.0,2.95903857]
[1747941304723,0.19706446,111690.0,111680.0,2.9500845]
[1747941304939,0.19706446,111690.0,111680.0,2.77100141]
[1747941305133,0.18811127,111690.0,111680.0,3.13244923]
[1747941306292,0.18911127,111690.0,111680.0,3.13244923]
[1747941306520,0.18811127,111690.0,111680.0,3.13244923]
[1747941306901,0.18811127,111690.0,111680.0,3.04980141]
[1747941307120,0.25051127,111690.0,111680.0,3.561955]
[1747941307328,0.25051127,111690.0,111680.0,2.945715]
[1747941307535,0.25051127,111690.0,111680.0,1.63677]
[1747941307820,0.34005683,111690.0,111680.0,1.70077]
[1747941308026,0.34005683,111690.0,111680.0,1.36077]
[1747941308285,0.34005683,111690.0,111680.0,1.70077]
[1747941314956,0.25051127,111690.0,111680.0,1.70077]
[1747941319487,0.22657078,111690.0,111680.0,1.70077]
[1747941319931,0.22657078,111690.0,111680.0,3.948315]
[1747941323143,0.22457078,111690.0,111680.0,3.948315]
[1747941324183,0.16217078,111690.0,111680.0,3.948315]
[1747941325494,0.16324194,111690.0,111680.0,3.948315]
[1747941325899,0.22594194,111690.0,111680.0,3.72604635]
[1747941326102,0.22487078,111690.0,111680.0,3.72604635]
[1747941328825,0.22487078,111690.0,111680.0,3.45772635]
[1747941329033,0.31441634,111690.0,111680.0,0.86226135]
[1747941329151,0.31441634,111690.0,111680.0,1.47850135]
[1747941329358,0.31441634,111690.0,111680.0,0.86226135]
[1747941329606,0.31441634,111690.0,111680.0,1.13850135]
[1747941330258,0.31441634,111690.0,111680.0,1.47850135]
[1747941332389,0.31441634,111690.0,111680.0,1.21018135]
[1747941332570,0.31441634,111690.0,111680.0,1.47850135]
[1747941332767,0.31441634,111690.0,111680.0,0.86226135]
[1747941332999,0.31441634,111690.0,111680.0,1.47826135]
[1747941340479,0.31441634,111690.0,111680.0,0.86994135]
[1747941340669,0.31441634,111690.0,111680.0,0.38636]
[1747941340874,0.31441634,111690.0,111680.0,1.00236]
[1747941344095,0.31441634,111690.0,111680.0,0.72636]
[1747941344321,0.16217078,111690.0,111680.0,3.621505]
[1747941344546,0.16217078,111690.0,111680.0,3.653405]
[1747941344969,0.16324194,111690.0,111680.0,3.653405]